[Event "Grand Prix Romania 1st Stage 2024"]
[Site "Bucuresti"]
[Date "2024.03.24"]
[Round "5.22"]
[White "Baranciuc, Alexandr"]
[Black "Parligras, Mircea-Emilian"]
[Result "0-1"]
[ECO "C54"]
[WhiteElo "2336"]
[BlackElo "2543"]
[Annotator "TA"]
[PlyCount "62"]
[EventDate "2024.03.20"]
[EventType "swiss"]
[EventCountry "ROU"]
[SourceTitle "playchess.com"]
[Source "ChessBase"]
[SourceQuality "1"]
[TimeControl "900+5"]

{[%evp 9,62,23,32,26,31,22,33,15,29,24,48,29,32,22,129,145,153,147,489,485,686,53,35,33,11,-56,-52,-90,-49,-158,-154,-163,-177,-512,-524,-928,-936,-929,-937,-929,-925,-1939,-1910,-5541,-5533,-5237,-2796,-29987,-29988,-29988,-29989,-29989,-29990,-29997,-29998]} 1. e4 {[%emt 0:00:05]} e5 {[%emt 0:00:04]} 2. Nf3 {[%emt 0:00:02]} Nc6 {[%emt 0:00:02]} 3. Bc4 {[%emt 0:00:02]} Bc5 {[%emt 0:00:02]} 4. c3 {[%emt 0:00:05]} Nf6 {[%emt 0:00:01]} 5. d3 {[%emt 0:00:01]} a6 {[%emt 0:00:04]} 6. a4 {[%emt 0:00:01]} Ba7 {[%emt 0:00:03]} 7. O-O {[%emt 0:00:06]} d6 {[%emt 0:00:02]} 8. Re1 {[%emt 0:00:03] Weiß steht etwas besser.} h6 {[%emt 0:00:08]} 9. Nbd2 {[%emt 0:00:01]} g5 {[%emt 0:00:10]} 10. b4 {[%emt 0:01:54]} Nh7 {[%emt 0:01:34]} 11. Kh1 {[%emt 0:00:25]} Bxf2 {[%emt 0:01:56]} (11... Qf6 $11 {bleibt in der Remisbreite.}) 12. Rf1 $16 {[%emt 0:00:03]} Bb6 {[%emt 0:00:02]} 13. Bxf7+ {[%emt 0:02:36]} Kxf7 $2 {[%emt 0:01:14][%mdl 8192]} (13... Kf8 $16 {leistet mehr Widerstand.} 14. Nc4 Kg7 15. Nxb6 cxb6) 14. Nxe5+ $18 {[%emt 0:00:27]} (14. Nxg5+ Kg7 15. Nf7 Qh4 $14) 14... Kg7 {[%emt 0:00:15] [#]} (14... Kg8 $142) 15. Nf7 $2 {[%emt 0:01:37]} ({Der einzige Zug:} 15. Rf7+ $1 $18 Kg8 16. Qb3) 15... Qe7 $14 {[%emt 0:00:24]} 16. Nxh8 {[%emt 0:00:03] Droht stark Rf7+.} Kxh8 {[%emt 0:00:24]} 17. Qh5 {[%emt 0:01:03]} ({Besser ist} 17. d4 $11) 17... Kg7 $1 $15 {[%emt 0:00:10]} 18. Bb2 {[%emt 0:00:28]} Nf6 {[%emt 0:00:25] Das Brett brennt.} 19. Qe2 {[%emt 0:01:45]} (19. c4 $2 Bd4 20. Bxd4 Nxd4 21. Rxf6 Qxf6 $19) (19. Qd1 $1 $15) 19... Bg4 $36 {[%emt 0:00:28][%mdl 2048] Schwarz hat starke Initiative. Schwarz steht aktiver.} 20. Nf3 {[%emt 0:00:03]} Rf8 {[%emt 0:00:39]} 21. h3 $2 {[%emt 0:00:06] [#]} (21. Rac1) 21... Nh5 $1 $19 {[%emt 0:00:53]} 22. Kh2 {[%emt 0:01:21] Verhindert Ng3} (22. Qd2 Ng3+) 22... Bxf3 {[%emt 0:07:55]} 23. Rxf3 {[%emt 0:00:11]} Qe5+ {[%emt 0:00:00]} 24. g3 {[%emt 0:00:44] [#]} Nxg3 $1 {[%emt 0:00:00][%mdl 512]} 25. Qg2 {[%emt 0:02:10]} (25. c4 Nxe2+) 25... Nxe4+ {[%emt 0:00:00]} 26. Kh1 {[%emt 0:00:24]} Nf2+ {[%emt 0:00:00]} ({Schlechter ist} 26... Nxc3 27. Bxc3 (27. Rxf8 $2 Kxf8 28. Bxc3 Qxc3 $19) 27... Qxc3 28. Raf1 Rxf3 29. Qxf3 $11) 27. Kg1 {[%emt 0:00:08]} Nxd3+ {[%emt 0:00:00]} 28. Kh1 {[%emt 0:00:30]} Nf2+ {[%emt 0:00:00] Schwarz setzt Matt.} 29. Kg1 {[%emt 0:00:01]} Nd1+ {[%emt 0:00:00]} 30. Kh1 {[%emt 0:00:26]} Rxf3 {[%emt 0:00:00]} 31. Qxf3 {[%emt 0:00:01]} Qe1+ {[%emt 0:00:00] Schwarz hat seine Chance genutzt.   Gewichteter Fehlerwert: Weiß=1.04/Schwarz=0.30.  Verlustzug:     	---       	Schwarz=1     Gewinn verpasst:   	Weiß=1     	---        Fehler:       	Weiß=3     	Schwarz=2     Ungenau:       	Weiß=2     	Schwarz=1     OK:         	Weiß=5     	Schwarz=3     Bester:       	Weiß=3     	Schwarz=1     Stark:        	---       	Schwarz=2} 0-1

[Event "Grand Prix Romania 1st Stage 2024"]
[Site "Bucuresti"]
[Date "2024.03.24"]
[Round "5.23"]
[White "Girmacea, Bogdan"]
[Black "Grigore, George-Gabriel"]
[Result "0-1"]
[ECO "B07"]
[WhiteElo "2076"]
[BlackElo "2423"]
[Annotator "TA"]
[PlyCount "79"]
[EventDate "2024.03.20"]
[EventType "swiss"]
[EventCountry "ROU"]
[SourceTitle "playchess.com"]
[Source "ChessBase"]
[SourceQuality "1"]
[TimeControl "900+5"]

{[%evp 14,79,0,11,45,42,62,50,46,33,23,31,66,21,24,15,20,0,0,-17,0,-14,-2,-9,19,-35,-27,-29,-2,-19,0,-33,-33,-35,-29,-31,-21,-28,-11,-9,-10,-18,0,0,0,-10,-10,-8,0,0,0,0,0,0,0,0,0,0,0,0,0,-8,8,-8,-8,-8,8,-13]} 1. d4 {[%emt 0:00:02]} Nf6 {[%emt 0:00:03]} 2. Nf3 {[%emt 0:00:05]} g6 {[%emt 0:00:03]} 3. Nbd2 {[%emt 0:00:03]} Bg7 {[%emt 0:00:55]} 4. e4 {[%emt 0:00:03]} d6 {[%emt 0:00:01][%cal Bd7d6,Bd6d5][%mdl 32]} 5. Bd3 {[%emt 0:00:04]} O-O {[%emt 0:00:05]} 6. O-O {[%emt 0:00:05]} c5 {[%emt 0:00:30]} 7. c3 {[%emt 0:00:24]} cxd4 {[%emt 0:00:35]} 8. cxd4 {[%emt 0:00:02]} d5 {[%emt 0:00:04]} 9. e5 {[%emt 0:00:45]} Ne8 {[%emt 0:00:02]} 10. h3 {[%emt 0:02:09]} Nc6 {[%emt 0:00:07] White is slightly better.} 11. Re1 {[%emt 0:02:35]} Nc7 {[%emt 0:00:04]} 12. Nb3 {[%emt 0:01:16]} Ne6 {[%emt 0:02:50]} 13. Bb5 {[%emt 0:01:45]} Bd7 {[%emt 0:00:14]} 14. Bxc6 {[%emt 0:00:07]} Bxc6 {[%emt 0:00:24]} 15. Bd2 {[%emt 0:00:54]} Ba4 {[%emt 0:01:32]} 16. Rc1 {[%emt 0:01:34]} Qb6 {[%emt 0:00:54]} 17. Re3 {[%emt 0:00:30]} Rfc8 {[%emt 0:01:34]} 18. Rec3 {[%emt 0:00:10]} Rc6 {[%emt 0:02:04]} 19. Be3 {[%emt 0:00:27]} (19. Rxc6 $11 bxc6 20. Rc3) 19... Rac8 $15 {[%emt 0:00:16]} 20. Qd3 {[%emt 0:01:16]} Bxb3 {[%emt 0:00:42]} 21. axb3 {[%emt 0:00:02]} a6 {[%emt 0:00:04]} 22. Rxc6 {[%emt 0:01:11]} Rxc6 {[%emt 0:00:02]} 23. Rxc6 {[%emt 0:00:03]} Qxc6 {[%emt 0:00:05]} 24. Qc3 {[%emt 0:00:05]} Nd8 {[%emt 0:01:31]} 25. Ne1 {[%emt 0:00:08]} e6 {[%emt 0:00:57]} 26. Nd3 {[%emt 0:00:02] The position is equal.} Bf8 {[%emt 0:00:08]} 27. Bg5 {[%emt 0:00:40] Wards off Be7} Qxc3 {[%emt 0:00:04]} 28. bxc3 $11 {[%emt 0:00:01][%mdl 4096] Endgame. KBN-KBN} Nc6 {[%emt 0:00:01]} 29. b4 {[%emt 0:00:23]} b6 {[%emt 0:00:05]} 30. Kf1 {[%emt 0:00:05]} a5 {[%emt 0:00:05]} 31. bxa5 {[%emt 0:00:03]} bxa5 {[%emt 0:00:03]} 32. Nb2 {[%emt 0:00:05]} h6 {[%emt 0:00:45]} 33. Bd2 {[%emt 0:00:17]} f6 {[%emt 0:00:02]} 34. exf6 {[%emt 0:00:08]} Kf7 {[%emt 0:00:01]} 35. Ke2 {[%emt 0:00:05]} Kxf6 {[%emt 0:00:01]} 36. Kd3 {[%emt 0:00:02]} e5 {[%emt 0:00:36]} 37. dxe5+ {[%emt 0:00:11]} Kxe5 {[%emt 0:00:02]} 38. f3 {[%emt 0:00:19]} h5 {[%emt 0:00:05]} 39. g4 {[%emt 0:00:04]} Bc5 {[%emt 0:00:22]} 40. c4 {[%emt 0:00:15][%mdl 32768] Weighted Error Value: White=0.11 (very precise) /Black=0.10 (very precise) .  Mistake:       	White=1     	---        Inaccurate:     	White=2     	Black=3      OK:         	White=8     	Black=11     Best:        	White=1     	---       . Loss on time!?} 0-1

[Event "Grand Prix Romania 1st Stage 2024"]
[Site "Bucuresti"]
[Date "2024.03.24"]
[Round "5.24"]
[White "Castellanos Rodriguez, Renier"]
[Black "Onut, Simeon"]
[Result "1-0"]
[ECO "B07"]
[WhiteElo "2469"]
[BlackElo "1983"]
[Annotator "TA"]
[PlyCount "57"]
[EventDate "2024.03.20"]
[EventType "swiss"]
[EventCountry "ROU"]
[SourceTitle "playchess.com"]
[Source "ChessBase"]
[SourceQuality "1"]
[TimeControl "900+5"]

{[%evp 15,57,98,93,59,62,51,51,41,58,55,39,60,63,43,108,132,168,163,165,168,166,160,531,517,701,697,770,806,818,770,861,859,867,863,859,850,832,623,29985,29986,29984,29966,29988,5560]} 1. e4 {[%emt 0:00:02]} g6 {[%emt 0:00:02]} 2. d4 {[%emt 0:00:02]} d6 {[%emt 0:00:00]} 3. Be3 {[%emt 0:00:18]} Bg7 {[%emt 0:00:02]} 4. Nc3 {[%emt 0:00:02]} Nf6 {[%emt 0:00:02]} 5. Qd2 {[%emt 0:00:11]} Ng4 {[%emt 0:00:02]} 6. Bg5 {[%emt 0:00:02]} h6 {[%emt 0:00:01]} 7. Bh4 {[%emt 0:00:02]} g5 {[%emt 0:00:01]} 8. Bg3 {[%emt 0:00:01]} e5 {[%emt 0:00:02]} 9. Nf3 {[%emt 0:00:29]} exd4 {[%emt 0:00:09]} 10. Nxd4 {[%emt 0:00:02]} Nc6 {[%emt 0:00:02]} 11. Bb5 {[%emt 0:00:50] White is slightly better.} Bd7 {[%emt 0:00:07]} 12. Bxc6 {[%emt 0:00:05]} bxc6 {[%emt 0:00:04]} 13. O-O-O {[%emt 0:00:13]} Rb8 {[%emt 0:00:16]} 14. h4 {[%emt 0:00:17]} Qf6 {[%emt 0:01:21] White leaves nothing to chance now.} (14... Ne5 $14) 15. Nf3 $16 {[%emt 0:04:10] [#] e5 would now be deadly.} Be6 {[%emt 0:01:30]} 16. hxg5 {[%emt 0:00:20]} hxg5 {[%emt 0:00:02]} 17. Rxh8+ {[%emt 0:01:18]} (17. Qxg5 Rxh1 (17... Bh6 18. Rxh6 Qxh6 19. Qxh6 $15) 18. Rxh1 Bh6 19. Rxh6 Qxh6 (19... Qxg5+ $2 20. Nxg5 Nxh6 21. f3 $19) 20. Qxh6 Nxh6 $15) 17... Bxh8 {[%emt 0:00:01]} 18. Nxg5 {[%emt 0:02:02]} (18. Qxg5 Qxg5+ 19. Nxg5 Bxc3 20. bxc3 Bxa2 $16) 18... Bxa2 $2 {[%emt 0:00:22] [#]} (18... c5 $16 {is a better chance.} 19. Rh1 Bg7) 19. e5 $18 {[%emt 0:00:07]} Nxe5 {[%emt 0:00:08]} 20. Bxe5 {[%emt 0:00:04]} (20. Nxa2 Nf3 21. Qe3+ (21. gxf3 $2 Qxb2#) 21... Kd7 $18) 20... Qh6 {[%emt 0:01:26]} 21. Bxh8 {[%emt 0:00:24]} Qxh8 {[%emt 0:00:02]} 22. b3 {[%emt 0:00:28]} (22. Nxa2 $2 Qxb2#) 22... Bxb3 {[%emt 0:00:09]} 23. cxb3 {[%emt 0:00:01]} Rxb3 {[%emt 0:00:02]} 24. Kc2 {[%emt 0:00:04]} Rb4 {[%emt 0:00:29]} 25. Re1+ {[%emt 0:00:03]} Kf8 {[%emt 0:00:05]} 26. Re4 {[%emt 0:00:19]} Rb8 {[%emt 0:00:29]} 27. Qf4 {[%emt 0:00:20][%csl Gg5][%cal Rf4f7] White mates.} Qh5 {[%emt 0:00:28]} 28. Qf6 {[%emt 0:00:21]} Re8 {[%emt 0:00:41]} 29. Ne6+ {[%emt 0:00:49] Weighted Error Value: White=0.34/Black=1.03.  Loses game:     	---       	Black=1      Mistake:       	---       	Black=1      Inaccurate:     	---       	Black=1      OK:         	White=5     	Black=3      Best:        	White=2     	Black=1} (29. g4 $142 Qxg5 30. Qxg5 (30. Qh8+ Qg8 31. Rxe8+ Kxe8 32. Qxg8+ Ke7 33. Ne4 d5 34. Qg5+ Kd7 35. Qf5+ Ke7) 30... Rxe4 31. Nxe4 Ke8 32. Qf5 Ke7 33. Nf6 d5 34. Qe5+ Kf8 35. Nd7+ (35. Qxc7 d4 36. Qd6+ Kg7 37. Nh5+ Kg8 38. Qxd4 f6 39. Qxf6 Kh7 40. Qg7#) 35... Kg8 36. Qg5+ (36. Qxc7 Kh7 37. Ne5 Kh6 38. Qxf7 Kg5 39. Qg6+ Kh4 40. Qh6#) 36... Kh7 37. Nf6+ Kh8 38. Qh6#) 1-0

[Event "Grand Prix Romania 1st Stage 2024"]
[Site "Bucuresti"]
[Date "2024.03.24"]
[Round "5.25"]
[White "Gulie, Cosmin"]
[Black "Tilicheev, Viacheslav"]
[Result "0-1"]
[ECO "B22"]
[WhiteElo "1987"]
[BlackElo "2485"]
[Annotator "TA"]
[PlyCount "90"]
[EventDate "2024.03.20"]
[EventType "swiss"]
[EventCountry "ROU"]
[SourceTitle "playchess.com"]
[Source "ChessBase"]
[SourceQuality "1"]
[TimeControl "900+5"]

{[%evp 13,90,3,14,10,23,3,8,-4,0,-3,2,0,0,0,0,-24,-25,-27,-20,-25,-17,-31,-27,-35,-25,-22,-25,-16,-23,-23,-13,-27,-32,-41,-36,-45,-36,-63,-44,-47,-40,-51,0,-60,-12,-18,0,-18,0,-33,0,-15,-25,-21,0,-158,-24,-14,-24,-223,-210,-229,-220,-231,-225,-228,-213,-227,-213,-310,-316,-332,-313,-340,-332,-452,-452,-443,-440]} 1. e4 {[%emt 0:00:05][%cal Be2e4,Be4e5][%mdl 32]} c5 {[%emt 0:00:01]} 2. c3 {[%emt 0:00:04]} Nf6 {[%emt 0:00:10]} 3. e5 {[%emt 0:00:11]} Nd5 {[%emt 0:00:04]} 4. Bc4 {[%emt 0:00:09]} Nb6 {[%emt 0:00:08]} 5. Bb3 {[%emt 0:00:02]} Nc6 {[%emt 0:00:17]} 6. Nf3 {[%emt 0:00:32]} d5 {[%emt 0:01:33]} 7. exd6 {[%emt 0:00:13]} Qxd6 {[%emt 0:00:03]} 8. d4 {[%emt 0:00:11]} cxd4 {[%emt 0:00:06]} 9. Nxd4 {[%emt 0:00:03]} Nxd4 {[%emt 0:00:12]} 10. Qxd4 {[%emt 0:00:01] The position is equal.} Qxd4 {[%emt 0:00:28]} 11. cxd4 {[%emt 0:00:02]} Bf5 {[%emt 0:00:01]} 12. Nc3 {[%emt 0:00:19]} e6 {[%emt 0:00:17]} 13. Be3 {[%emt 0:00:25]} Bb4 {[%emt 0:01:25]} 14. a3 {[%emt 0:00:30]} Bxc3+ {[%emt 0:00:25]} 15. bxc3 {[%emt 0:00:01]} Rc8 {[%emt 0:00:02]} 16. Kd2 {[%emt 0:00:55]} Be4 {[%emt 0:00:04]} 17. f3 {[%emt 0:03:43]} Bd5 {[%emt 0:00:02]} 18. Rab1 {[%emt 0:00:25]} Kd7 {[%emt 0:00:31]} 19. a4 {[%emt 0:01:27]} Bxb3 {[%emt 0:00:28]} 20. Rxb3 {[%emt 0:00:01]} Nc4+ {[%emt 0:00:02]} (20... Nxa4 21. Rxb7+ Kc6 22. Rxa7 $16 (22. Rxf7 a5 $18)) 21. Kd3 {[%emt 0:00:13]} b6 {[%emt 0:00:02]} 22. Bd2 {[%emt 0:00:39]} Rc6 {[%emt 0:00:13]} 23. Rc1 {[%emt 0:01:53]} Rhc8 {[%emt 0:00:08]} 24. Rb5 {[%emt 0:00:25]} h6 {[%emt 0:01:20]} 25. f4 {[%emt 0:00:42]} f5 {[%emt 0:01:58]} 26. h3 {[%emt 0:00:16]} Nd6 {[%emt 0:00:06]} 27. Re5 {[%emt 0:00:53]} Nc4 {[%emt 0:02:38]} 28. Rb5 {[%emt 0:00:20]} a6 {[%emt 0:00:15]} (28... Ke7 $15) 29. Rb4 {[%emt 0:00:20]} a5 {[%emt 0:00:02]} 30. Rb5 {[%emt 0:00:12]} Nd6 {[%emt 0:00:02]} 31. Re5 {[%emt 0:00:02]} Rc4 {[%emt 0:00:02]} 32. Rb1 {[%emt 0:00:07]} R8c6 {[%emt 0:00:03]} 33. d5 {[%emt 0:01:07]} exd5 {[%emt 0:00:04]} 34. Rbe1 $2 {[%emt 0:00:28]} ({White must play} 34. Rxd5 $11 Ke6 (34... Rxa4 35. Be3 $11) 35. Re5+ Kf6 36. g4) 34... Ne4 {[%emt 0:01:24]} (34... Rxa4 $17 {And now ...Ne4 would win.} 35. Rxd5 g6) 35. Rxd5+ $11 {[%emt 0:00:15]} Ke6 {[%emt 0:00:08]} 36. Re5+ {[%emt 0:00:16] [#] This costs White the game.} (36. Rd4 $1 $11 {and White is okay.} Rxd4+ 37. cxd4) 36... Kf6 $1 $19 {[%emt 0:00:18]} 37. g4 {[%emt 0:00:27] [#]} g6 {[%emt 0:00:01]} (37... Rxa4 $2 38. Rxf5+ Ke7 39. Re5+ (39. Rxe4+ Rxe4 40. Kxe4 g5 $18) 39... Kd7 40. R1xe4 $18 (40. R5xe4 Rd6+ 41. Rd4 Rdxd4+ 42. cxd4 Ra3+ 43. Ke4 b5 $18)) 38. gxf5 {[%emt 0:00:04]} gxf5 {[%emt 0:00:01]} (38... Nxc3 $2 39. Re6+ Kf7 40. fxg6+ Kg7 41. Rxc6 Rxc6 42. Bxc3+ $18) 39. Ra1 {[%emt 0:00:16]} Nxd2 {[%emt 0:00:59]} ({Don't take} 39... Nxc3 40. Be3 $15) 40. Kxd2 {[%emt 0:00:01]} Rxf4 {[%emt 0:00:02] KRR-KRR} 41. Rb5 {[%emt 0:00:05]} (41. Rd5 $142) 41... Rf2+ {[%emt 0:00:23]} 42. Ke3 {[%emt 0:00:02]} Rc2 {[%emt 0:00:50]} (42... Rxc3+ $2 {perishes.} 43. Kxf2 Rxh3 44. Rxb6+ Kg5 45. Rb5 $18) 43. Rf1 {[%emt 0:00:01]} R2xc3+ {[%emt 0:00:01]} (43... R6xc3+ $2 44. Kd4 $19) 44. Kd4 {[%emt 0:00:11]} R6c4+ {[%emt 0:00:11]} (44... Rxh3 $2 45. Rbxf5+ Kg6 46. R5f4 $19) 45. Kd5 {[%emt 0:00:10]} Rc5+ {[%emt 0:00:02] Weighted Error Value: White=0.34/Black=0.13 (very precise) .  Loses game:     	White=1     	---        Mistake:       	White=2     	Black=2      Inaccurate:     	White=3     	Black=1      OK:         	White=9     	Black=21     Best:        	White=1     	Black=1      Strong:       	---       	Black=1} (45... Rxa4 46. Rxb6+ Kg5 47. Rg1+ Kf4 48. Rxh6 Rd3+ 49. Ke6 Re4+ 50. Kf7 $11) 0-1